bitfinex-derivatives/quotes_ETHF0:USTF0_20250115
["timestamp","ask_amount","ask_price","bid_price","bid_amount"]
[1736965280148,0.59746,3347.3,3347.2,42.62648]
[1736965280446,0.59746,3347.3,3347.2,42.029]
[1736965280949,0.59745,3347.4,3347.3,0.59746]
[1736965281950,3.80524,3347.5,3347.3,0.59746]
[1736965282146,3.2078,3347.5,3347.3,0.59746]
[1736965282452,3.2078,3347.5,3347.2,42.62647]
[1736965282654,0.59746,3347.3,3347.2,42.029]
[1736965282950,0.59746,3347.3,3347.2,42.62648]
[1736965283151,3.2078,3347.5,3347.2,42.62648]
[1736965283350,0.59745,3347.4,3347.3,0.59746]
[1736965284154,3.2078,3347.5,3347.2,42.62648]
[1736965284155,0.59746,3347.3,3347.2,42.62648]
[1736965284353,0.59746,3347.4,3347.2,42.029]
[1736965284541,0.59746,3347.4,3347.3,0.59746]
[1736965285552,0.59746,3347.3,3347.2,42.029]
[1736965285947,0.59746,3347.3,3347.2,1.229]
[1736965286153,0.59746,3347.3,3347.2,1.82648]
[1736965286546,0.59746,3347.3,3347.2,1.229]
[1736965286742,3.2078,3347.5,3347.0,4.1658]
[1736965287054,0.5975,3347.1,3347.0,5.3948]
[1736965287254,0.5975,3347.1,3347.0,46.79232]
[1736965287457,3.2078,3347.5,3347.1,0.59749]
[1736965287755,0.59748,3347.2,3347.1,0.59749]
[1736965288356,0.59747,3347.3,3347.2,0.59748]
[1736965288559,3.2078,3347.5,3347.0,46.1948]
[1736965288560,3.80524,3347.5,3347.3,0.59745]
[1736965289051,0.59746,3347.4,3347.3,0.59746]
[1736965289258,3.80524,3347.5,3347.4,0.59744]
[1736965289655,3.80524,3347.5,3347.3,0.59745]
[1736965290458,3.80524,3347.5,3347.0,49.96133337]
[1736965290761,3.80524,3347.5,3347.3,0.59745]
[1736965291761,0.59744,3347.4,3347.3,0.59745]
[1736965291965,3.80523,3347.5,3347.4,0.59744]
[1736965292261,0.59746,3347.4,3347.2,0.59747]
[1736965292461,0.59746,3347.4,3347.0,48.46756337]
[1736965292664,3.2078,3347.5,3347.0,48.46756337]
[1736965292863,0.59745,3347.4,3347.3,0.59746]
[1736965293059,3.2078,3347.5,3347.0,48.46756337]
[1736965293259,3.2078,3347.5,3347.2,0.59747]
[1736965293456,0.59744,3347.4,3347.0,48.46756337]
[1736965293662,0.5975,3347.1,3347.0,4.1658]
[1736965296058,0.5975,3347.1,3347.0,4.76332]
[1736965296562,0.59747,3347.3,3347.2,0.59747]
[1736965296761,0.59745,3347.4,3347.3,0.59746]
[1736965297163,3.2078,3347.5,3347.1,2.27276337]
[1736965297367,3.2078,3347.5,3347.4,0.59744]
[1736965297671,3.80523,3347.5,3347.4,0.59744]
[1736965298368,3.2078,3347.5,3347.1,2.27276337]
[1736965298755,3.80524,3347.5,3347.4,0.59744]
[1736965299163,3.2078,3347.5,3347.4,0.59744]
[1736965299366,3.80523,3347.5,3347.1,2.27276337]
[1736965299665,3.80523,3347.5,3347.4,0.59744]
[1736965299860,0.59746,3347.4,3347.3,0.59746]
[1736965300464,0.5975,3347.1,3347.0,4.1658]
[1736965300671,0.5975,3347.1,3347.0,4.76332]
[1736965300968,0.5975,3347.1,3347.0,4.1658]
[1736965301167,3.8053,3347.1,3347.0,4.1658]
[1736965301467,3.8053,3347.1,3347.0,4.76332]
[1736965302466,3.8053,3347.1,3347.0,2.04892]
[1736965302666,3.8053,3347.1,3347.0,1.4514]
[1736965303274,3.2078,3347.1,3346.9,3.6490371]
[1736965303567,0.59752,3347.0,3346.9,3.6490371]
[1736965303770,0.59752,3347.0,3346.9,4.2465671]
[1736965304068,0.59752,3347.0,3346.9,3.6490371]
[1736965304961,0.59752,3347.0,3346.9,3.45873]
[1736965305170,3.2078,3347.1,3346.9,2.8612]
[1736965305462,3.2078,3347.1,3347.0,0.59752]
[1736965305872,3.80524,3347.5,3347.4,0.59744]
[1736965306365,0.59745,3347.4,3347.3,0.59746]
[1736965306764,3.80524,3347.5,3347.3,0.59746]
[1736965306967,0.59744,3347.4,3347.3,0.59746]
[1736965307368,3.2078,3347.5,3347.3,0.59746]
[1736965307569,3.80524,3347.5,3347.3,0.59745]
[1736965307869,0.59744,3347.4,3347.3,0.59745]
[1736965308064,0.5975,3347.1,3347.0,5.28936782]
[1736965308269,0.5975,3347.1,3347.0,4.69185782]
[1736965308664,0.5975,3347.1,3347.0,5.28936782]
[1736965308862,1.489,3347.3,3346.9,4.0902]
[1736965309075,3.2078,3347.5,3346.9,6.36296337]
[1736965309267,3.2078,3347.5,3347.4,0.59744]
[1736965309571,0.59738,3347.8,3347.7,0.59739]
[1736965310067,0.5974,3347.7,3347.5,0.59741]
[1736965310264,0.59738,3347.8,3347.6,0.5974]
[1736965310665,3.2078,3347.9,3347.8,0.59737]
[1736965310873,3.2078,3347.9,3347.8,2.87013337]
[1736965311077,3.80509,3348.3,3348.1,0.59732]
[1736965311367,0.59728,3348.4,3348.2,1.4936]
[1736965311567,0.59726,3348.5,3348.3,0.59728]
[1736965311769,0.59727,3348.4,3348.3,0.59728]
[1736965312172,6.1378,3348.7,3348.2,1.4936]
[1736965312371,0.59727,3348.4,3348.3,0.59727]
[1736965312571,0.59727,3348.4,3348.3,0.59728]
[1736965314872,0.59728,3348.3,3348.2,2.09089]
[1736965315464,6.1378,3348.7,3348.2,1.4936]
[1736965315661,0.59728,3348.3,3348.2,2.09089]
[1736965316472,0.59728,3348.3,3348.2,1.4936]
[1736965316672,0.59732,3348.2,3348.1,0.59732]
[1736965316870,3.8051,3348.3,3348.2,0.5973]
[1736965317471,3.2078,3348.3,3348.0,2.6701]
[1736965317672,0.59731,3348.2,3348.1,0.59731]
[1736965317872,0.59733,3348.1,3347.9,0.59736]
[1736965318177,3.2078,3348.3,3348.0,0.59733]
[1736965318178,2.09152,3348.2,3348.0,0.59733]
[1736965318474,2.09152,3348.2,3348.1,0.59732]
[1736965319476,2.09152,3348.2,3348.0,0.59732]
[1736965319677,1.4942,3348.2,3348.0,0.59734]
[1736965319981,2.0915,3348.2,3348.0,0.59734]
[1736965320681,1.4942,3348.2,3347.9,1.229]
[1736965320979,2.09151,3348.2,3348.0,0.59734]
[1736965321577,0.59731,3348.2,3348.0,0.59734]
[1736965322681,0.59731,3348.2,3348.1,40.8]
[1736965322877,3.2078,3348.3,3348.1,40.8]
[1736965323078,0.59723,3348.6,3348.2,0.5973]
[1736965323279,0.59723,3348.6,3348.1,40.8]
[1736965323280,0.59723,3348.6,3348.5,0.59725]
[1736965323574,0.59724,3348.6,3348.4,0.59726]
[1736965323782,0.59724,3348.6,3348.5,1.4305]
[1736965324173,0.59723,3348.6,3348.5,1.4305]
[1736965324780,3.2078,3348.7,3348.5,1.4305]
[1736965324984,0.59723,3348.6,3348.5,1.4305]
[1736965325278,3.80503,3348.7,3348.5,2.02774]
[1736965325478,0.59723,3348.6,3348.5,2.02774]
[1736965325983,3.2078,3348.7,3348.6,0.59723]
[1736965326384,3.80501,3348.7,3348.6,0.59723]
[1736965327284,3.2078,3348.7,3348.6,0.59723]
[1736965327882,3.80501,3348.7,3348.6,0.59723]
[1736965328483,3.2078,3348.7,3348.6,0.59723]
[1736965329982,3.2078,3348.7,3348.5,1.4305]
[1736965330480,3.2078,3348.7,3348.6,0.59723]
[1736965330679,3.80501,3348.7,3348.6,0.59723]
[1736965330878,3.80501,3348.7,3348.6,1.82523]
[1736965331280,3.2078,3348.7,3348.6,1.82523]
[1736965331479,3.80501,3348.7,3348.6,1.82523]
[1736965332186,3.2078,3348.7,3348.6,1.82523]
[1736965333285,0.59719,3348.9,3348.8,0.5972]
[1736965333881,0.59719,3348.9,3348.7,0.5972]
[1736965334082,0.59719,3348.9,3348.7,0.59721]
[1736965334280,0.59719,3348.9,3348.6,1.228]
[1736965334484,0.59717,3349.0,3348.9,0.59718]
[1736965334682,0.59718,3348.9,3348.8,0.59718]
[1736965335187,0.59716,3349.0,3348.9,0.59717]
[1736965335883,3.80495,3349.1,3348.9,0.59718]
[1736965336184,3.80495,3349.1,3349.0,1.4819]
[1736965336386,3.80495,3349.1,3349.0,2.8985]
[1736965337092,3.80495,3349.1,3349.0,3.49566]
[1736965337391,3.80495,3349.1,3349.0,2.8985]
[1736965337893,3.2078,3349.5,3349.4,0.59709]
[1736965338190,3.2078,3349.5,3349.3,1.8251]
[1736965338587,3.80488,3349.5,3349.3,1.8251]
[1736965338785,3.80488,3349.5,3349.4,0.59709]
[1736965338986,3.80488,3349.5,3349.3,1.82509]
[1736965339289,3.80488,3349.5,3349.4,0.59709]
[1736965340793,3.80487,3349.5,3349.4,0.59709]
[1736965340999,0.59709,3349.4,3349.3,42.62509]
[1736965341493,0.59709,3349.4,3349.3,1.82509]
[1736965341693,3.2078,3349.5,3349.3,1.82509]
[1736965341994,0.59709,3349.4,3349.3,1.82509]
[1736965342892,3.2078,3349.5,3349.0,2.8985]
[1736965343189,3.80494,3349.1,3349.0,2.8985]
[1736965345892,3.2078,3349.1,3348.8,1.228]
[1736965346092,0.59718,3348.9,3348.8,1.228]
[1736965346898,0.59718,3348.9,3348.4,4.0064]
[1736965346899,0.59725,3348.5,3348.4,4.0064]
[1736965347102,0.59725,3348.5,3348.4,2.7784]
[1736965347597,0.59716,3349.0,3348.6,0.59723]
[1736965347797,0.5972,3348.8,3348.7,1.3906]
[1736965350696,0.59723,3348.7,3348.5,0.59724]
[1736965350896,0.59723,3348.7,3348.6,1.3827]
[1736965352894,0.59725,3348.5,3348.4,2.7784]
[1736965353101,3.2078,3348.5,3348.2,4.69185782]
[1736965353395,0.59728,3348.3,3348.2,4.69185782]
[1736965353790,3.2078,3348.5,3348.1,5.4565]
[1736965353997,0.5973,3348.2,3348.1,5.4565]
[1736965354891,0.5973,3348.2,3348.1,4.2285]
[1736965355203,0.5973,3348.2,3348.1,5.4565]
[1736965360209,0.5973,3348.2,3348.1,46.2565]
[1736965361307,0.5973,3348.2,3348.1,42.028]
[1736965361616,0.5973,3348.2,3348.1,1.228]
[1736965363404,0.59734,3348.0,3347.9,40.8]
[1736965364410,4.5583,3348.1,3347.8,1.228]
[1736965364610,0.59736,3347.9,3347.8,1.228]
[1736965364911,0.59736,3347.9,3347.8,42.028]
[1736965367613,0.59736,3347.9,3347.8,40.8]
[1736965373117,0.59736,3347.9,3347.7,3.29479]
[1736965373118,0.59737,3347.8,3347.7,3.29479]
[1736965373312,0.59737,3347.8,3347.7,2.06679]
[1736965373517,0.59737,3347.8,3347.7,44.09479]
[1736965373713,0.59737,3347.8,3347.7,3.29479]
[1736965374618,0.59737,3347.8,3347.7,2.6974]
[1736965375725,3.2078,3348.0,3347.4,4.69185782]
[1736965375917,1.3505,3348.1,3347.4,4.69185782]
[1736965375918,0.59743,3347.5,3347.4,4.69185782]
[1736965376117,0.59743,3347.5,3347.4,46.71985782]
[1736965376422,0.59743,3347.5,3347.4,42.028]
[1736965377819,0.59743,3347.5,3347.4,42.62544]
[1736965378010,3.2078,3347.6,3347.5,0.59743]
[1736965378711,3.2078,3347.6,3347.5,41.39743]
[1736965378712,3.80521,3347.6,3347.5,41.39743]
[1736965379621,3.2078,3347.6,3347.5,41.39743]
[1736965380221,3.2078,3347.6,3347.5,0.59743]
[1736965380821,4.6427,3348.4,3348.0,0.59733]
[1736965381026,0.5973,3348.3,3348.1,4.84391]
[1736965381325,0.5973,3348.2,3348.1,5.4746]
[1736965382427,3.2078,3348.4,3348.1,5.4746]
[1736965382628,0.59729,3348.3,3348.2,0.5973]
[1736965382923,0.5973,3348.2,3348.1,6.07191]
[1736965383123,0.5973,3348.2,3348.1,5.4746]
[1736965384129,3.2078,3348.4,3348.1,5.4746]
[1736965384319,0.5973,3348.3,3348.1,5.4746]
[1736965384525,0.5973,3348.3,3348.1,6.07191]
[1736965384724,0.59728,3348.3,3348.1,6.07191]
[1736965384928,3.2078,3348.4,3348.1,6.07191]
[1736965385127,0.5973,3348.2,3348.1,6.07191]
[1736965385624,3.2078,3348.4,3348.1,6.07191]
[1736965385822,0.5973,3348.2,3348.1,6.07191]
[1736965386622,3.2078,3348.4,3348.1,6.07191]
[1736965386827,0.5973,3348.3,3348.1,6.07191]
[1736965387425,0.5973,3348.2,3348.1,6.07191]
[1736965387930,3.2078,3348.4,3348.1,5.4746]
[1736965388126,3.2078,3348.4,3348.3,0.59728]
[1736965389129,3.2078,3348.4,3348.1,5.4746]
[1736965389130,0.59724,3348.6,3348.2,2.27276337]
[1736965389429,0.59723,3348.7,3348.6,0.59723]
[1736965390231,4.5957,3349.2,3348.5,5.48056337]
[1736965390424,0.59718,3349.0,3348.9,0.59717]
[1736965390733,0.59718,3348.9,3348.8,0.59718]
[1736965390930,0.59718,3348.9,3348.8,1.82518]
[1736965391128,0.59716,3349.0,3348.9,0.59718]
[1736965391432,0.59716,3349.0,3348.9,3.43678]
[1736965395234,0.59716,3349.1,3349.0,0.59715]
[1736965395434,3.80494,3349.2,3349.1,0.59714]
[1736965397237,3.2078,3349.2,3349.1,0.59714]
[1736965397535,3.2078,3349.2,3349.1,0.59712]
[1736965397536,0.59713,3349.2,3349.1,0.59712]
[1736965398033,0.59715,3349.1,3349.0,0.59715]
[1736965398539,0.59713,3349.2,3349.1,0.59712]
[1736965398731,0.59712,3349.3,3349.2,0.59711]
[1736965399337,1.4171,3349.5,3348.9,2.8396]
[1736965399640,4.6086,3349.6,3349.0,40.8]
[1736965399839,0.59712,3349.3,3349.2,0.59712]
[1736965401034,0.59712,3349.3,3349.1,2.03573]
[1736965401234,4.6086,3349.6,3349.1,1.4386]
[1736965401235,0.5971,3349.4,3349.1,1.4386]
[1736965401437,4.6086,3349.6,3349.2,0.59711]
[1736965401742,6.10126,3349.6,3349.1,2.03573]
[1736965401935,0.59712,3349.2,3349.1,2.03573]
[1736965402139,0.59712,3349.2,3349.1,42.83573]
[1736965402729,0.59712,3349.2,3349.1,42.2386]
[1736965403140,0.59712,3349.2,3349.1,43.4656]
[1736965403938,0.59712,3349.2,3349.1,44.06274]
[1736965404243,0.59712,3349.2,3349.1,3.26274]
[1736965404439,0.59712,3349.2,3349.1,2.6656]
[1736965404636,0.59712,3349.2,3349.1,43.4656]
[1736965405049,1.4789,3349.7,3349.1,4.93836337]
[1736965405340,6.14948,3350.0,3349.5,2.27276337]
[1736965405544,0.59703,3349.8,3349.6,4.92564]
[1736965405844,0.59701,3349.9,3349.7,0.59703]
[1736965406040,0.59701,3349.9,3349.6,4.3286]
[1736965406041,0.59702,3349.8,3349.6,4.92564]
[1736965407250,3.2078,3350.0,3349.6,4.3286]
[1736965407540,0.59703,3349.7,3349.6,4.92565]
[1736965407739,3.2078,3350.0,3349.6,4.92565]
[1736965408044,0.59703,3349.7,3349.6,4.92565]
[1736965408543,0.59703,3349.8,3349.6,4.3286]
[1736965408738,0.59703,3349.8,3349.7,0.59703]
[1736965408939,0.59703,3349.8,3349.7,1.227]
[1736965410141,3.2078,3350.0,3349.7,1.227]
[1736965410342,3.80478,3350.0,3349.9,2.86976337]
[1736965410542,3.80478,3350.0,3349.9,2.27276337]
[1736965410742,0.59703,3349.7,3349.6,3.74936337]
[1736965411052,0.59703,3349.7,3349.6,4.97636337]
[1736965411247,0.59703,3349.7,3349.6,45.77636337]
[1736965411839,0.59703,3349.7,3349.6,46.37341337]
[1736965412240,0.59703,3349.7,3349.6,45.77636337]
[1736965412841,0.59703,3349.7,3349.4,1.3791]
[1736965413040,0.59707,3349.5,3349.4,2.6061]
[1736965413747,0.59707,3349.5,3349.4,4.0214]
[1736965418954,2.04856,3349.6,3349.4,4.61848]
[1736965419350,2.04856,3349.6,3349.5,1.06970357]
[1736965424157,0.59704,3349.7,3349.6,0.59704]
[1736965424363,3.2078,3349.8,3349.7,0.59703]
[1736965424553,3.2078,3349.8,3349.7,1.66673357]
[1736965427463,0.59697,3350.1,3350.0,0.59698]
[1736965427659,0.597,3350.0,3349.9,0.59699]
[1736965427968,0.597,3350.0,3349.9,1.72849]
[1736965428169,0.597,3350.0,3349.9,2.95609]
[1736965436777,0.597,3350.0,3349.9,2.3591]
[1736965437376,0.597,3350.0,3349.9,2.9561]
[1736965438082,0.597,3350.0,3349.9,2.3591]
[1736965438784,0.597,3350.0,3349.9,2.9561]
[1736965439181,0.597,3350.0,3349.9,1.1315]
[1736965439383,3.2078,3350.3,3349.6,5.84844131]
[1736965439684,2.6132,3350.4,3349.6,5.84844131]
[1736965439685,0.59703,3349.7,3349.6,5.91034131]
[1736965439876,0.59703,3349.7,3349.6,1.226]
[1736965445091,0.59705,3349.6,3349.5,1.1331]
[1736965445292,0.59707,3349.5,3349.4,1.1641]
[1736965445490,0.59709,3349.4,3349.3,1.226]
[1736965445689,0.59711,3349.3,3349.2,5.91984131]
[1736965445890,0.59711,3349.3,3349.2,1.2355]
[1736965446587,0.59711,3349.3,3349.2,1.83262]
[1736965446787,0.59711,3349.3,3349.2,1.2355]
[1736965446988,0.59706,3349.6,3349.4,0.59707]
[1736965447182,0.59699,3350.0,3349.8,0.59701]
[1736965447488,0.59698,3350.0,3349.9,7.87025858]
[1736965447693,0.59698,3350.0,3349.9,49.26725858]
[1736965447891,0.59698,3350.0,3349.9,48.67025858]
[1736965448286,0.59698,3350.0,3349.9,49.26724858]
[1736965448486,0.59698,3350.0,3349.9,48.67025858]
[1736965449196,0.59698,3350.0,3349.9,49.26725858]
[1736965449395,0.59698,3350.0,3349.9,49.86009364]
[1736965449900,0.59698,3350.0,3349.9,50.45709364]
[1736965450395,0.59698,3350.0,3349.9,49.86009364]
[1736965450699,0.59698,3350.0,3349.9,5.85229364]
[1736965452898,0.59698,3350.0,3349.9,10.53663495]
[1736965454602,0.59698,3350.0,3349.9,5.85229364]
[1736965457005,3.2078,3350.3,3349.9,5.85229364]
[1736965457699,3.2078,3350.3,3350.0,0.59696]
[1736965457906,0.59697,3350.1,3349.9,6.44927364]
[1736965458103,0.59697,3350.1,3350.0,0.59698]
[1736965458307,3.2078,3350.3,3350.0,0.59698]
[1736965458507,0.59696,3350.2,3350.0,0.59698]
[1736965458804,0.59696,3350.2,3350.1,0.59696]
[1736965459005,0.59698,3350.1,3350.0,0.59697]
[1736965459407,0.59696,3350.2,3349.9,10.53663495]
[1736965459702,0.59697,3350.1,3350.0,0.59697]
[1736965459901,3.2078,3350.3,3349.9,5.85229364]
[1736965460107,0.59697,3350.1,3350.0,0.59697]
[1736965461008,0.59695,3350.2,3350.1,0.59696]
[1736965465206,3.2078,3350.3,3349.9,5.85229364]
[1736965465402,0.59698,3350.0,3349.9,4.19019]
[1736965466106,0.59698,3350.0,3349.9,3.5932]
[1736965469817,0.59698,3350.0,3349.9,1.06954125]
[1736965471120,0.59702,3349.8,3349.7,5.75388256]
[1736965471315,3.80482,3349.8,3349.7,5.75388256]
[1736965471513,3.80482,3349.8,3349.7,1.06954125]
[1736965473014,0.59703,3349.7,3349.6,1.054]
[1736965473216,1.73513,3349.7,3349.6,1.054]
[1736965474310,0.59703,3349.7,3349.6,1.054]
[1736965488441,1.66657125,3349.7,3349.6,1.054]
[1736965491238,0.59703,3349.7,3349.6,1.054]
[1736965492846,0.59703,3349.7,3349.6,2.12354125]
[1736965494041,0.59703,3349.7,3349.6,2.72059125]
[1736965494443,3.80482,3349.8,3349.7,0.59703]
[1736965494642,0.59701,3349.9,3349.8,0.59699]
[1736965494945,0.59701,3349.9,3349.8,1.66653125]
[1736965496943,0.59701,3349.9,3349.8,42.46653125]
[1736965497343,0.59701,3349.9,3349.8,1.66653125]
[1736965498448,0.59701,3349.9,3349.8,1.06954125]
[1736965498850,0.59701,3349.9,3349.8,1.66656125]
[1736965499243,0.59701,3349.9,3349.8,1.06954125]
[1736965504148,3.80481,3349.9,3349.6,2.279]
[1736965504346,3.80481,3349.9,3349.6,2.12354125]
[1736965504347,0.59703,3349.7,3349.6,2.12354125]
[1736965507354,0.59703,3349.8,3349.7,0.59703]
[1736965507849,1.49242,3350.1,3349.6,7.40493256]
[1736965508056,0.59696,3350.1,3350.0,1.06954125]
[1736965509746,1.49237,3350.3,3349.9,1.1206]
[1736965509747,2.56191125,3350.3,3349.9,1.1206]
[1736965509952,0.59698,3350.0,3349.9,1.1206]
[1736965510356,0.59702,3349.8,3349.7,5.75388256]
[1736965511654,0.59702,3349.8,3349.7,2.23594125]
[1736965515959,3.80482,3349.8,3349.7,2.23594125]
[1736965520257,3.80482,3349.8,3349.7,1.1664]
[1736965520458,3.80482,3349.8,3349.7,2.23594125]
[1736965520852,3.80482,3349.8,3349.7,1.1664]
[1736965521058,0.59703,3349.7,3349.6,5.73834131]
[1736965522259,0.59703,3349.7,3349.6,1.054]
[1736965524370,0.59703,3349.7,3349.6,2.12354125]
[1736965525456,0.59705,3349.6,3349.5,4.68434131]
[1736965525662,1.69345,3349.6,3349.5,4.68434131]
[1736965526962,1.0964,3349.6,3349.3,1.06954125]
[1736965527266,3.80489,3349.4,3349.3,1.06954125]
[1736965527965,3.2078,3349.4,3349.2,6.93224131]
[1736965528167,0.59711,3349.3,3349.2,2.2479]
[1736965528361,2.78415125,3349.3,3349.2,1.146]
[1736965528562,0.59712,3349.2,3349.1,4.68434131]
[1736965529369,0.59716,3349.0,3348.9,1.0613]
[1736965529567,3.80496,3349.0,3348.9,1.0613]
[1736965530672,3.80496,3349.0,3348.9,2.13084125]
[1736965537973,3.80496,3349.0,3348.9,2.72802125]
[1736965538673,3.2078,3349.4,3348.9,3.2003825]
[1736965538873,0.5971,3349.4,3349.3,1.06954125]
[1736965539675,0.5971,3349.4,3349.3,2.72445125]
[1736965540881,3.2078,3349.8,3349.3,2.12734125]
[1736965541082,3.80482,3349.8,3349.7,1.06954125]
[1736965543283,0.59705,3349.6,3349.5,1.06954125]
[1736965544180,0.59709,3349.4,3349.3,1.0578]
[1736965544381,3.80489,3349.4,3349.3,1.0578]
[1736965544689,3.2078,3349.4,3349.2,2.2196]
[1736965544881,0.59711,3349.3,3349.2,2.2196]
[1736965545081,2.81955125,3349.3,3349.0,6.82012362]
[1736965545289,0.59714,3349.1,3349.0,6.82012362]
[1736965545586,0.59714,3349.1,3349.0,2.12994125]
[1736965545780,0.59714,3349.1,3349.0,1.0604]
[1736965545988,0.59716,3349.0,3348.9,2.1671]
[1736965546184,3.80496,3349.0,3348.9,2.1671]
[1736965546488,0.5972,3348.8,3348.7,3.38394125]
[1736965546985,0.59721,3348.7,3348.6,1.0637]
[1736965550479,0.59721,3348.7,3348.6,1.66093]
[1736965550888,0.59721,3348.7,3348.6,1.0637]
[1736965557795,0.59721,3348.7,3348.6,3.32541001]
[1736965558098,3.2078,3349.2,3348.6,3.32541001]
[1736965558395,0.5972,3348.8,3348.7,0.5972]
[1736965558798,0.5972,3348.8,3348.7,40.8]
[1736965560498,0.59721,3348.7,3348.6,3.92264001]
[1736965561093,0.59721,3348.7,3348.6,44.72264001]
[1736965561600,0.59721,3348.7,3348.6,3.32541001]
[1736965561987,0.59721,3348.7,3348.6,1.0637]
[1736965562192,3.2078,3348.8,3348.3,6.86248237]
[1736965562393,0.59727,3348.4,3348.3,6.86248237]
[1736965562688,0.59727,3348.4,3348.3,2.1723]
[1736965567003,3.2078,3348.8,3348.3,4.43401001]
[1736965567197,3.2078,3348.8,3348.4,0.59726]
[1736965567507,0.59727,3348.4,3348.3,5.03128001]
[1736965567801,0.59727,3348.4,3348.3,6.86248237]
[1736965568191,3.80507,3348.4,3348.3,6.86248237]
[1736965568604,3.2078,3348.4,3348.2,1.0898]
[1736965568802,0.59728,3348.3,3348.2,1.0898]
[1736965578223,3.2078,3348.4,3347.8,46.71418237]
[1736965578526,0.59736,3347.9,3347.8,4.69018237]
[1736965578921,0.59737,3347.8,3347.7,2.2878]
[1736965584726,3.2078,3347.9,3347.1,10.24307356]
[1736965585021,0.59743,3347.5,3347.4,1.0602]
[1736965585425,1.66513,3347.5,3347.4,1.0602]
[1736965585728,0.59746,3347.3,3347.1,1.0602]
[1736965586318,0.59748,3347.2,3347.1,1.0602]
[1736965586520,3.80528,3347.2,3347.1,1.0602]
[1736965587129,3.80528,3347.2,3347.1,1.6577]
[1736965587427,3.80528,3347.2,3347.1,1.0602]
[1736965599633,4.70137,3347.6,3347.1,1.0602]
[1736965599838,4.70109,3348.2,3347.4,2.26171001]
[1736965600024,0.59737,3347.9,3347.8,0.59737]
[1736965600223,0.59737,3347.9,3347.8,1.59557]
[1736965600423,0.59737,3347.9,3347.8,0.9982]
[1736965605538,0.59735,3348.0,3347.8,0.9982]
[1736965605743,3.80511,3348.2,3348.1,0.59732]
[1736965606042,0.59733,3348.1,3347.9,2.26171001]
[1736965606241,0.59733,3348.1,3348.0,42.8521]
[1736965607039,0.59736,3347.9,3347.8,0.9982]
[1736965607333,0.59739,3347.7,3347.6,6.66678237]
[1736965607643,3.80519,3347.7,3347.6,7.72678237]
[1736965608140,3.80519,3347.7,3347.6,3.0366]
[1736965608543,0.59739,3347.7,3347.6,3.0366]
[1736965610833,0.59736,3347.9,3347.8,0.59737]
[1736965611043,0.59738,3347.8,3347.7,0.59738]
[1736965611233,0.59737,3347.9,3347.6,5.29831001]
[1736965611440,0.59739,3347.7,3347.6,3.634]
[1736965612136,3.2078,3348.1,3347.6,3.0366]
[1736965612334,0.59739,3347.7,3347.6,3.634]
[1736965612545,3.2078,3348.1,3347.6,3.0366]
[1736965612743,0.59738,3347.8,3347.7,0.59738]
[1736965613948,0.59734,3348.0,3347.6,3.63399]
[1736965614142,0.59738,3347.8,3347.7,0.59738]
[1736965614746,0.59738,3347.8,3347.7,41.39738]
[1736965615843,0.59738,3347.8,3347.7,0.59738]
[1736965617837,4.70109,3348.2,3347.6,5.29831001]
[1736965618036,0.59736,3347.9,3347.8,0.59737]
[1736965618237,3.2078,3348.2,3347.6,5.29831001]
[1736965618444,0.59736,3347.9,3347.8,0.59736]
[1736965619445,3.2078,3348.2,3347.6,5.29831001]
[1736965619644,0.59737,3347.9,3347.6,9.98849238]
[1736965619843,0.59737,3347.9,3347.8,0.59737]
[1736965620247,3.2078,3348.2,3347.6,9.98849238]
[1736965620452,0.59737,3347.9,3347.8,0.59737]
[1736965624048,3.2078,3348.2,3347.6,9.98849238]
[1736965624349,3.2078,3348.8,3348.1,6.06683001]
[1736965624547,0.59725,3348.5,3348.4,0.59725]
[1736965625154,0.59728,3348.4,3348.3,0.59728]
[1736965626849,3.2078,3348.8,3348.2,4.3193]
[1736965627049,3.2078,3348.8,3348.4,2.26171001]
[1736965627353,3.2078,3348.8,3348.7,0.59721]
[1736965627354,3.80501,3348.8,3348.7,0.59721]
[1736965627853,0.59721,3348.8,3348.7,0.59721]
[1736965628156,0.59721,3348.8,3348.4,2.26171001]
[1736965628157,0.59723,3348.7,3348.4,2.26171001]
[1736965628452,0.59723,3348.7,3348.5,0.59724]
[1736965629049,1.49291,3349.0,3348.4,2.26171001]
[1736965629250,3.2078,3348.8,3348.4,2.26171001]
[1736965629445,0.59724,3348.6,3348.5,0.59724]
[1736965632254,3.2078,3348.8,3348.4,2.26171001]
[1736965632450,3.2078,3348.8,3348.5,0.59725]
[1736965632651,0.59724,3348.6,3348.5,0.59725]
[1736965633355,0.59724,3348.6,3348.5,40.8]
[1736965633756,0.59724,3348.6,3348.5,41.39725]
[1736965634248,0.59724,3348.6,3348.5,0.59724]
[1736965634455,3.2078,3348.8,3348.2,6.58101001]
[1736965634650,0.59721,3348.7,3348.4,0.59726]
[1736965634851,0.59725,3348.5,3348.4,0.59726]
[1736965635352,0.59725,3348.5,3348.4,0.59727]
[1736965635548,3.2078,3348.8,3348.2,3.0973]
[1736965635859,0.59728,3348.3,3348.2,3.0973]
[1736965636251,1.68578,3348.3,3348.2,3.0973]
[1736965636852,0.59728,3348.3,3348.2,3.6946]
[1736965637054,0.59728,3348.3,3348.2,3.0973]
[1736965640862,0.59724,3348.6,3348.5,0.59724]
[1736965641254,3.2078,3348.8,3348.3,2.26171001]
[1736965641449,3.2078,3348.8,3348.5,0.59723]
[1736965641656,0.59723,3348.6,3348.5,0.59723]
[1736965641953,0.59723,3348.7,3348.5,0.59723]